Cogmind - Beta 13 @@@ ROGUE MODE // 2024.04.23 @ 11:16:31 Player: Barbarossa Result: Destroyed by Y-45 Defender with Beam Rifle Performance ------------- Evolutions (1) 500 Regions Visited (2) 400 Robots Destroyed (34) 170 Value Destroyed (813) 813 Prototype IDs (0) 0 Alien Tech Used (0) 0 Bonus (0) 0 TOTAL SCORE: 1883 Bonus ------- None Cogmind --------- Core Integrity 0/400 Matter 300/300 Energy 250/250 System Corruption 0% Temperature Cool (9) Movement Core (2450) Ox48 Location -9/Materials Parts ------- > --- POWER (1) -------- Ion Engine > --- PROPULSION (3) --- Light Treads > --- UTILITY (3) ------ Cargo Storage Unit Signal Interpreter > --- WEAPON (2) ------- (None) > --- INVENTORY (30) --- Light Treads Light Treads Heat Sink Heat Sink Improved Heat Sink Targeting Computer Small Laser Datajack Peak State ------------ > --- POWER ------------ Improved Ion Engine > --- PROPULSION ------- Light Treads Compact Wheel Armored Wheel > --- UTILITY ---------- Cargo Storage Unit Signal Interpreter > --- WEAPON ----------- Beam Rifle Beam Rifle > --- INVENTORY -------- Light Treads Compact Wheel Improved Heat Sink Targeting Computer Small Laser Small Laser Small Laser Small Laser Datajack [Rating: 14] Favorites ----------- Power Ion Engine Engine Ion Engine Propulsion Compact Wheel Treads Light Treads Leg Aluminum Leg Wheel Compact Wheel Utility Signal Interpreter Storage Cargo Storage Unit Processor Signal Interpreter Weapon Small Laser Energy Gun Small Laser Ballistic Gun Light Assault Rifle Build | -11 -10 -9 ------- Run | Yrd Mat Mat Slots Evolved 2 | . . 2 Power . | . . . Propulsion 1 | . . 1 Utility 1 | . . 1 Weapon . | . . . Parts Attached 24 | . 10 14 Power 3 | . 1 2 Engine 3 | . 1 2 Core . | . . . Reactor . | . . . Propulsion 10 | . 4 6 Treads 3 | . . 3 Leg . | . . . Wheel 7 | . 4 3 Hover . | . . . Flight . | . . . Utility 2 | . 1 1 Device . | . . . Storage 1 | . . 1 Processor 1 | . 1 . Hackware . | . . . Protection . | . . . Artifact . | . . . Weapon 9 | . 4 5 Energy Gun 9 | . 4 5 Energy Cannon . | . . . Ballistic Gun . | . . . Ballistic Cannon . | . . . Launcher . | . . . Special Weapon . | . . . Impact Weapon . | . . . Slashing Weapon . | . . . Piercing Weapon . | . . . Special Melee Weapon . | . . . Unidentified Prototypes . | . . . Parts Lost 14 | . 2 12 Power 3 | . 1 2 Propulsion 6 | . 1 5 Utility . | . . . Weapon 5 | . . 5 Highest Loss Streak 3 | . 2 3 To Critical Strikes . | . . . Average Slot Usage (%) 84 | . 94 75 Engine 11 | . 13 10 Treads 8 | . . 16 Wheel 17 | . 27 7 Storage 12 | . 14 11 Processor 10 | . 9 11 Energy Gun 17 | . 15 19 Ballistic Gun 5 | . 12 . Naked Turns . | . . . Heaviest Build 153 | 11 13 153 Greatest Support 44 | 20 32 44 Greatest Overweight (x) 50 | . . 50 Average Overweight (x) 1 | . . 10 Largest Inventory Capacity 30 | . 8 30 Average Capacity 19 | . 8 29 Most Carried 12 | . 8 12 Average Carried 8 | . 7 8 Final Capacity 30 | 8 8 30 Final Carried 8 | 6 8 8 Class Distribution -------------------- 53% | Hauler-Mutant 46% | Mutant Dominant Class ---------------- Mutant | -10/Materials Hauler-Mutant | -9/Materials Resources | -11 -10 -9 ----------- Run | Yrd Mat Mat Matter Collected 571 | 200 213 158 Remotely . | . . . Salvage Created 1224 | . 498 726 Parts 75 | . 32 43 Haulers Intercepted . | . . . Recyclers Shooed 2 | . 1 1 Parts Field Recycled . | . . . Retrieved Matter . | . . . Parts Self-Destructed . | . . . Prevented . | . . . Kills | -11 -10 -9 ------- Run | Yrd Mat Mat Combat Hostiles Destroyed 29 | . 10 19 Guns 27 | . 10 17 Classes Destroyed 7 | . 4 3 Worker 1 | . . 1 Recycler 2 | . 2 . Watcher 2 | . 2 . Swarmer 12 | . 6 6 Grunt 11 | . 4 7 Brawler 1 | . . 1 Sentry 5 | . . 5 Best Kill Streak 4 | . 4 3 Combat Bots Only 3 | . 3 3 Max Kills in Single Turn 2 | . 2 1 Gunslinging . | . . . Exploded . | . . . Melee . | . . . Uniques/NPCs Destroyed . | . . . Combat | -11 -10 -9 -------- Run | Yrd Mat Mat Hostile Shots Fired 198 | . 42 156 Missed 42 | . 9 33 Damage Taken 1923 | . 376 1547 Core 470 | . 70 400 Absorbed by Shields . | . . . Regen/Repaired (Parts) 17 | . 17 . Core Remaining (%) 86 | 100 72 . Volleys Fired 123 | . 46 77 Largest 2 | . 2 2 Hottest 112 | . 80 112 Shots Fired 220 | . 93 127 Gun 220 | . 93 127 Cannon . | . . . Launcher . | . . . Special . | . . . Kinetic 77 | . 77 . Thermal 143 | . 16 127 Explosive . | . . . Electromagnetic . | . . . Robot Hit Streak 16 | . 16 10 Robot Miss Streak 6 | . 5 6 Penetration Max . | . . . Secondary Targets 1 | . . 1 Max Gunslinging Chain 1 | . . 1 Shots Hit Robots 136 | . 58 78 Core Hits 54 | . 23 31 Critical Kills . | . . . Critical Parts Destroyed . | . . . Critical Strikes 4 | . . 4 Burn 4 | . . 4 Melee Attacks . | . . . Impact . | . . . Slashing . | . . . Piercing . | . . . Sneak Attacks . | . . . Combat Hostiles . | . . . Follow-up Attacks . | . . . Damage Inflicted 1639 | . 621 1018 Guns 1639 | . 621 1018 Cannons . | . . . Explosions . | . . . Melee . | . . . Ramming . | . . . Kinetic 529 | . 529 . Thermal 1110 | . 92 1018 Explosive . | . . . Electromagnetic . | . . . Impact . | . . . Slashing . | . . . Piercing . | . . . Highest Corruption 1 | . 1 . Average Corruption 1 | . 1 . Corruption Purged . | . . . Corruption Blocked . | . . . Effects 4 | . 4 . Matter Fused 1 | . 1 . Energy Discharges 1 | . 1 . Data Loss (major) 1 | . 1 . Misfires 1 | . 1 . Overload Shots . | . . . Overflow Damage . | . . . Projectiles . | . . . Explosions . | . . . Melee . | . . . Knockbacks . | . . . Impact . | . . . Kinetic . | . . . Secondary . | . . . Self-Inflicted Damage . | . . . Shots . | . . . Rammed . | . . . Targets Rammed . | . . . Kicked . | . . . Crushed . | . . . Highest Temperature 369 | . 90 369 Average Temperature 81 | . 27 90 Received Heat Transfer 768 | . 135 633 Effects 1 | . . 1 Energy Bleed 1 | . . 1 Siege Activations . | . . . Robots Corrupted . | . . . Combat Hostiles . | . . . Parts Fried . | . . . Impact Corruptions . | . . . Robots Melted 2 | . . 2 Combat Hostiles 2 | . . 2 Parts Melted 15 | . . 15 Heat Transferred 2940 | . 200 2740 Parts Sabotaged . | . . . Parts Stolen . | . . . Parts Stripped . | . . . Power Chain Reactions . | . . . Alert | -11 -10 -9 ------- Run | Yrd Mat Mat Peak Influence 291 | . 239 291 Initial . | . . . Average 134 | . 104 160 Maximum Alert Level 1 | . 1 1 Low Security (%) 68 | . 85 52 Level 1 31 | . 14 47 Level 2 . | . . . Level 3 . | . . . Level 4 . | . . . Level 5 . | . . . High Security . | . . . Max Security . | . . . Squads Dispatched 4 | . 3 1 Investigation 1 | . 1 . Extermination . | . . . Reinforcement 3 | . 2 1 Assault . | . . . Garrison . | . . . Intercept . | . . . Searches Triggered . | . . . Construction Impeded . | . . . Haulers Reinforced . | . . . Active Scanning Responses . | . . . Cargo Convoy Interrupts . | . . . Stealth | -11 -10 -9 --------- Run | Yrd Mat Mat Distress Signals 6 | . . 6 Communications Jammed . | . . . Distress Signals . | . . . Times Spotted 53 | . 21 32 Peak Tracking Total 7 | . 3 7 Tactical Retreats 1 | . . 1 Traps | -11 -10 -9 ------- Run | Yrd Mat Mat Traps Triggered 1 | . 1 . Indirectly . | . . . Trap Hack Attempts . | . . . Triggered . | . . . Disarmed . | . . . Reprogrammed . | . . . Reused . | . . . Traps Extracted . | . . . Installed . | . . . Triggered . | . . . Machines | -11 -10 -9 ---------- Run | Yrd Mat Mat Machines Disabled . | . . . Max in Single Turn . | . . . Machines Repaired . | . . . Machines Dismantled . | . . . Machines Sabotaged . | . . . Overloaded Fab Kills . | . . . Hacking | -11 -10 -9 --------- Run | Yrd Mat Mat Machines Accessed 6 | . 6 . Terminals 5 | . 5 . Fabricators . | . . . Repair Stations 1 | . 1 . Recycling Units . | . . . Scanalyzers . | . . . Garrison Access . | . . . Total Hacks 17 | . 17 . Successful 8 | . 8 . Failed 9 | . 9 . Catastrophic 2 | . 2 . Database Lockouts . | . . . Manual 9 | . 9 . Terminals 15 | . 15 . Fabricators . | . . . Repair Stations 2 | . 2 . Recycling Units . | . . . Scanalyzers . | . . . Garrison Access . | . . . Terminal Hacks 2 | . 2 . Branch Access Points 1 | . 1 . Emergency Access Points 1 | . 1 . Fabricator Hacks . | . . . Repair Station Hacks 2 | . 2 . Scan Component 1 | . 1 . Repair 1 | . 1 . Recycling Unit Hacks . | . . . Scanalyzer . | . . . Garrison Access Hacks . | . . . Unauthorized Hacks 4 | . 4 . Terminals 4 | . 4 . Botnet 4 | . 4 . Fabricators . | . . . Repair Stations . | . . . Recycling Units . | . . . Scanalyzers . | . . . Garrison Access . | . . . Data Cores Recovered . | . . . Used . | . . . Hacking Detections 6 | . 6 . Full Trace Events 1 | . 1 . Feedback Events . | . . . Feedback Blocked . | . . . Robot Schematics Acquired . | . . . Robots Built . | . . . Authchips . | . . . Time . | . . . Total Robot Build Rating . | . . . Part Schematics Acquired . | . . . Parts Built . | . . . Authchips . | . . . Time . | . . . Total Part Build Rating . | . . . Parts Repaired 1 | . 1 . Time 26 | . 26 . Parts Recycled . | . . . Recycled Matter . | . . . Retrieved Matter . | . . . Retrieved Components . | . . . Parts Scanalyzed . | . . . Part Schematics Acquired . | . . . Parts Damaged . | . . . Bothacking | -11 -10 -9 ------------ Run | Yrd Mat Mat Used RIF Installer . | . . . Robots Hacked . | . . . Non-combat . | . . . Combat . | . . . Robot Hacks Applied . | . . . Relay Couplers Released . | . . . Fabnet Peak Effective % . | . . . Robots Rewired . | . . . Allies Hacked . | . . . Hacks Repelled . | . . . Allies | -11 -10 -9 -------- Run | Yrd Mat Mat Total Allies . | . . . Largest Group . | . . . Highest-Rated Group . | . . . Highest-Rated Ally . | . . . Total Orders . | . . . Ally Attacks . | . . . Total Damage . | . . . Kills . | . . . Allies Corrupted . | . . . Allies Melted . | . . . Intel | -11 -10 -9 ------- Run | Yrd Mat Mat Robot Analysis Total . | . . . Derelict Logs Recovered . | . . . Drone Launches . | . . . Drone Recoveries . | . . . Exploration | -11 -10 -9 ------------- Run | Yrd Mat Mat Turns Passed 1716 | . 806 910 Spaces Moved 742 | 1 616 125 Core 19 | . . 19 Treads 15 | . . 15 Legs 1 | 1 . . Wheels 707 | . 616 91 Hover . | . . . Flight . | . . . Fastest Speed 100 | 120 100 141 Average Speed 173 | 120 100 538 Slowest Speed 2550 | 120 100 2550 Overloaded Moves . | . . . Propulsion Burnouts . | . . . Robots Hopped . | . . . Cave-ins Triggered . | . . . Exploration Rate (%) 35 | 1 90 15 Regions Visited 2 Branch Regions . Pre-discovered Areas . | . . . Known Exits Taken 1 | . 1 . Unknown Exits Taken 1 | 1 . . Scrap Searched . | . . . Spaces Dug . | . . . Terrain Destroyed . | . . . Melee . | . . . Projectile . | . . . AOE . | . . . Terrain Rammed . | . . . Walls Destroyed . | . . . Machines Disabled . | . . . Actions | -11 -10 -9 --------- Run | Yrd Mat Mat Total 969 | . 723 246 Wait 41 | . 30 11 Move 740 | . 615 125 Hop . | . . . Pick Up 28 | . 12 16 Fast Attach 2 | . 2 . Attach 12 | . 2 10 Detach . | . . . Swap 10 | . 6 4 Drop 13 | . 10 3 Fire 123 | . 46 77 Melee . | . . . Ram . | . . . Kick . | . . . Crush . | . . . Escape Stasis . | . . . Rewire . | . . . Trap . | . . . Miscellaneous . | . . . Route ------- -11/Scrapyard -10/Materials (discovered 5 exits: *Mat x3 / *Min x2) -9/Materials History --------- Turn | Location | Event 1 | -11/Scrapyard | Discovered new exit (range 0) 1 | -11/Scrapyard | Entered Materials 219 | -10/Materials | Identified exit to Mines 257 | -10/Materials | Discovered new exit (range 10) 267 | -10/Materials | Identified exit to Materials 309 | -10/Materials | Build established: Mutant 520 | -10/Materials | Discovered exit to Materials (range 15) 593 | -10/Materials | Repaired Com. Wheel 802 | -10/Materials | Discovered exit to Materials (range 6) 807 | -10/Materials | Entered another Materials area 807 | -9/Materials | Evolved 2 slots: Propulsion x1, Utility x1 958 | -9/Materials | Lost 3 parts (1p1n1w) 1107 | -9/Materials | Core integrity fell below 50% 1116 | -9/Materials | Build established: Hauler-Mutant 1525 | -9/Materials | Core integrity fell below 20% 1717 | -9/Materials | Destroyed by Y-45 Defender with Beam Rifle Last Messages --------------- 01530_ G-34 Mercenary destroyed. 01539_ R-06 Scavenger collects Aluminum Leg. 01595_ K-01 Serf collects debris. 01678_ Sml. Laser destroyed. 01681_ T-07 Excavator is excavating. 01684_ Sml. Laser destroyed. 01684_ K-01 Serf destroyed. 01685_ T-07 Excavator is excavating. 01685_ K-01 Serf collects debris. 01689_ T-07 Excavator is excavating. 01690_ Critical hit (Burn: +37). 01690_ K-01 Serf collects debris. 01699_ U-05 Engineer lays Concrete. 01699_ Critical hit (Burn: +37). 01700_ U-05 Engineer lays Concrete. 01711_ K-01 Serf destroyed. 01712_ K-01 Serf collects debris. 01714_ Lgt. Treads destroyed. 01716_ M-13 Machinist repairs Imp. Terrain Scanner. Map ----- +----------------------------------------------------+ | ??????????????????????????????????????????# | | ??????????????????????????????????????????# | | ??????????????????????????????????????????# = | | ??????????????????????????????????????????# #### | | ??????????????????????????????????????????# #??# | | ??????????????????????????????????????????# #??# | | ??????????????????????????????????????????# #??# | | ??????????????????????????????????????????# #??# | | ??????????????????????????????????????????# #??# | | ??????????????????????????????????????????# #??# | | ?????????????????????????????????????????? ??# | | ????????????????????? ????????????? ???? ??# | | ????????????????????? ??????????? ?? ??# | | ????????????????????? ??????????? ?? ??# | | ?????????????????????# ????????+??# #?## ??# | | ?????????????????????# ????????? ?# #??######??# | | ?????????????????????# ???????? ?# #???######## | | ?????????????????????# ????????? # #???# # | | ?????????????????????# ????????? # #???# = # | | ?????????????????????# ??????????+ #???# !# | | ?????????????????????# t ?????????# #???# ! =+ | | ?????????????????????# ?????????# #???# =# | | ?????????????????????# ?????????# #???# |# | | ????????????????????## ##???????# #???######## | | ???????????????###### ######??# ########### | | ?????????? Y =@ #### | | ?????????? t %%!=%r% % % %% | | ?????????? u m k% #### % % | | ???????????## ####### ## #??## #### ####### | | ????????????????????######## #???# #??# #?????## | | ???????????????????????????+ #???# #??# #??????? | | ?????????????????????????? # #???#+#??# #??????? | | ????????????????????????? # #????????# #??????? | | ???????????????????????? ?# #????????# #??????? | | ??????????????????????? ??# #????????# ??????? | | ??????????????????????? ??# #????????? #??????? | | ??????????????????????""???# +????????? ???????? | | ????????????????????? "????# #????????? ???????? | | ???????????????????????????# #????????? ???????? | | ???????????????????????????# #????????? ???????? | | ???????????????????????????+ #????????? ???????? | | ????????????????????????????## ?????????? ???????? | | ?????????????????????????????????????????????????? | | ?????????????????????????????????????????????????? | | ?????????????????????????????????????????????????? | | ?????????????????????????????????????????????????? | | ?????????????????????????????????????????????????? | | ?????????????????????????????????????????????????? | | ?????????????????????????????????????????????????? | | ?????????????????????????????????????????????????? | +----------------------------------------------------+ Best States ------------- Heat Dissipation 28 Energy Generation 12 Energy Capacity 265 Matter Stores 300 Matter Capacity 300 Sight Range 16 Terrain Scan Density 10 Evasion (%) 40 Recoil Reduction 2 Item Schematics ----------------- None Robot Schematics ------------------ None Fabricated ------------ Nothing Alien Tech Used ----------------- None Achievements -------------- None Challenges ------------ None Game ------ Seed HelicalSmartbombRefractor Manual? 0 Play Time 00:15:01 Cumulative 120.7 hours Start 2024.04.23 @ 11:05:25 End 2024.04.23 @ 11:16:31 Sessions 1 Manual Loads 0 Difficulty Rogue Special Mode None Game No. 234 Rogue 234 Adventurer 0 Explorer 0 Win Type - Total 0 Types 0/0/0/0/0/0/0/0/0 Lore% 33 Gallery% 46 Achievement% 32 Wizard Run 0 Options --------- Layout 1 ASCII 0 Keyboard 0 Movement Mouse Keybinds 0 Fullscreen 1 Font 24/Smallcaps Map View 50x40 Zoom Use 0% Tactical HUD 1 Map Filters NONE Filters NONE Steam 1 RUN: 95b45c34-2cf6-46dc-a172-8cd36f38ccf4